[Event "Late-Titled-Tuesday-Blitz-February-20-2024"]
[Site "Chess.com"]
[Date "2024.02.20"]
[Round "9"]
[White "Hikaru"]
[Black "Msb2"]
[Result "1/2-1/2"]
[WhiteElo "3241"]
[BlackElo "3028"]
[TimeControl "180+1"]
[EndTime "15:47:10 PST"]
[Termination "Game drawn - insufficient material"]

1. h3 {[%clk 0:03:00.9]} 1... d5 {[%clk 0:02:57.5]} 2. Nf3 {[%clk 0:02:57]} 2...
Nf6 {[%clk 0:02:57.2]} 3. e3 {[%clk 0:02:53.6]} 3... e6 {[%clk 0:02:53.2]} 4. c4
{[%clk 0:02:51.6]} 4... Bd6 {[%clk 0:02:53.2]} 5. b3 {[%clk 0:02:51.5]} 5... O-O
{[%clk 0:02:47]} 6. Bb2 {[%clk 0:02:51.9]} 6... c5 {[%clk 0:02:46.9]} 7. cxd5
{[%clk 0:02:45.2]} 7... exd5 {[%clk 0:02:47.8]} 8. d4 {[%clk 0:02:45.8]} 8...
Nc6 {[%clk 0:02:38.6]} 9. Nbd2 {[%clk 0:02:42.4]} 9... cxd4 {[%clk 0:02:13.1]}
10. Nxd4 {[%clk 0:02:42.5]} 10... Nxd4 {[%clk 0:02:13.8]} 11. Bxd4 {[%clk
0:02:43.4]} 11... Qe7 {[%clk 0:02:14.6]} 12. Bd3 {[%clk 0:02:39.3]} 12... Be5
{[%clk 0:02:14.3]} 13. Nf3 {[%clk 0:02:28.9]} 13... Bxd4 {[%clk 0:02:13.4]} 14.
Nxd4 {[%clk 0:02:29.8]} 14... Bd7 {[%clk 0:02:10.1]} 15. O-O {[%clk 0:02:27.6]}
15... Rac8 {[%clk 0:02:10.8]} 16. Qd2 {[%clk 0:02:26.8]} 16... Rc7 {[%clk
0:02:09]} 17. Rac1 {[%clk 0:02:24.6]} 17... Rfc8 {[%clk 0:02:07.6]} 18. Rxc7
{[%clk 0:02:24]} 18... Rxc7 {[%clk 0:02:08.5]} 19. Rc1 {[%clk 0:02:12.2]} 19...
Qd6 {[%clk 0:02:06.8]} 20. Rd1 {[%clk 0:02:12.1]} 20... a6 {[%clk 0:02:04.4]}
21. Ne2 {[%clk 0:02:09]} 21... Qe5 {[%clk 0:01:59.4]} 22. Nf4 {[%clk 0:01:59.3]}
22... Be6 {[%clk 0:01:51]} 23. Qa5 {[%clk 0:01:55.7]} 23... Rc8 {[%clk
0:01:44.7]} 24. Qb6 {[%clk 0:01:55.1]} 24... Qc7 {[%clk 0:01:43.5]} 25. Qb4
{[%clk 0:01:50.9]} 25... h6 {[%clk 0:01:25.8]} 26. Ne2 {[%clk 0:01:46.7]} 26...
Qd7 {[%clk 0:01:22.1]} 27. Nd4 {[%clk 0:01:36.5]} 27... Rc7 {[%clk 0:01:22.1]}
28. Qb6 {[%clk 0:01:17.9]} 28... Rc8 {[%clk 0:01:08.5]} 29. Qb4 {[%clk
0:01:11.2]} 29... Rc7 {[%clk 0:01:06.9]} 30. Qd2 {[%clk 0:01:05.3]} 30... Qd6
{[%clk 0:01:05]} 31. b4 {[%clk 0:01:04.4]} 31... Rc8 {[%clk 0:01:02]} 32. b5
{[%clk 0:01:02.2]} 32... axb5 {[%clk 0:00:59.9]} 33. Nxb5 {[%clk 0:01:03.1]}
33... Qc5 {[%clk 0:00:56.1]} 34. Nd4 {[%clk 0:01:02.9]} 34... Qc3 {[%clk
0:00:56.3]} 35. Qe2 {[%clk 0:01:01.6]} 35... Qa3 {[%clk 0:00:55.3]} 36. Qd2
{[%clk 0:00:52.2]} 36... Qc3 {[%clk 0:00:54.6]} 37. Qe2 {[%clk 0:00:37.1]} 37...
Qa3 {[%clk 0:00:54.3]} 38. Kh2 {[%clk 0:00:37.7]} 38... Rc1 {[%clk 0:00:45.7]}
39. Rd2 {[%clk 0:00:37.9]} 39... Qd6+ {[%clk 0:00:43.6]} 40. f4 {[%clk
0:00:35.5]} 40... Qc7 {[%clk 0:00:38.2]} 41. Rb2 {[%clk 0:00:34.3]} 41... Bc8
{[%clk 0:00:28.9]} 42. Qd2 {[%clk 0:00:34]} 42... Qc3 {[%clk 0:00:26.2]} 43. Nb5
{[%clk 0:00:29.6]} 43... Qxd2 {[%clk 0:00:25.7]} 44. Rxd2 {[%clk 0:00:30.5]}
44... Bd7 {[%clk 0:00:23.6]} 45. Nd4 {[%clk 0:00:30.9]} 45... Rc3 {[%clk
0:00:23.3]} 46. Kg1 {[%clk 0:00:28.3]} 46... Ra3 {[%clk 0:00:23.6]} 47. Kf2
{[%clk 0:00:28.4]} 47... Kf8 {[%clk 0:00:20.1]} 48. Ke2 {[%clk 0:00:28.3]} 48...
Ke7 {[%clk 0:00:20.2]} 49. Rb2 {[%clk 0:00:29]} 49... Bc8 {[%clk 0:00:18.8]} 50.
Nb5 {[%clk 0:00:28.5]} 50... Ra5 {[%clk 0:00:19.2]} 51. Kd2 {[%clk 0:00:28.7]}
51... Bd7 {[%clk 0:00:17]} 52. Nd4 {[%clk 0:00:29.3]} 52... Bc8 {[%clk
0:00:17.6]} 53. Ke2 {[%clk 0:00:27.6]} 53... Ne8 {[%clk 0:00:16.5]} 54. Bf5
{[%clk 0:00:23.5]} 54... Bxf5 {[%clk 0:00:11.4]} 55. Nxf5+ {[%clk 0:00:24.4]}
55... Kf6 {[%clk 0:00:12]} 56. g4 {[%clk 0:00:23.9]} 56... Ra6 {[%clk
0:00:05.1]} 57. Rxb7 {[%clk 0:00:19.4]} 57... g6 {[%clk 0:00:04]} 58. Nxh6
{[%clk 0:00:19]} 58... Nd6 {[%clk 0:00:04.5]} 59. Rc7 {[%clk 0:00:10.6]} 59...
Rxa2+ {[%clk 0:00:03.9]} 60. Kf3 {[%clk 0:00:09.8]} 60... Ke6 {[%clk 0:00:02.9]}
61. g5 {[%clk 0:00:06.6]} 61... Ra3 {[%clk 0:00:02]} 62. Ng4 {[%clk 0:00:06.6]}
62... d4 {[%clk 0:00:02.6]} 63. Rc5 {[%clk 0:00:05.8]} 63... dxe3 {[%clk
0:00:02.9]} 64. Re5+ {[%clk 0:00:06.2]} 64... Kd7 {[%clk 0:00:03.8]} 65. Nf6+
{[%clk 0:00:03.7]} 65... Kc6 {[%clk 0:00:03.3]} 66. Rxe3 {[%clk 0:00:03.9]}
66... Rxe3+ {[%clk 0:00:03.3]} 67. Kxe3 {[%clk 0:00:04.8]} 67... Nf5+ {[%clk
0:00:03.7]} 68. Ke4 {[%clk 0:00:05.4]} 68... Kd6 {[%clk 0:00:04.6]} 69. Ng4
{[%clk 0:00:03.6]} 69... Ke6 {[%clk 0:00:05.1]} 70. Kf3 {[%clk 0:00:04]} 70...
Nd6 {[%clk 0:00:06]} 71. Ne3 {[%clk 0:00:04.4]} 71... f6 {[%clk 0:00:05.6]} 72.
Kg4 {[%clk 0:00:04.7]} 72... fxg5 {[%clk 0:00:05.3]} 73. Kxg5 {[%clk 0:00:05.6]}
73... Kf7 {[%clk 0:00:05.9]} 74. Nd5 {[%clk 0:00:04.9]} 74... Kg7 {[%clk
0:00:05.4]} 75. Kg4 {[%clk 0:00:04.9]} 75... Nf7 {[%clk 0:00:05.7]} 76. Ne3
{[%clk 0:00:05]} 76... Nh6+ {[%clk 0:00:06.3]} 77. Kf3 {[%clk 0:00:05.7]} 77...
Nf7 {[%clk 0:00:06.5]} 78. Ke4 {[%clk 0:00:06.3]} 78... Nd6+ {[%clk 0:00:06.9]}
79. Ke5 {[%clk 0:00:06.3]} 79... Nf7+ {[%clk 0:00:07.8]} 80. Ke6 {[%clk
0:00:07]} 80... Nd8+ {[%clk 0:00:07.6]} 81. Kd7 {[%clk 0:00:07.1]} 81... Nf7
{[%clk 0:00:08.2]} 82. Ke7 {[%clk 0:00:07.9]} 82... Nh6 {[%clk 0:00:08.3]} 83.
Ke6 {[%clk 0:00:08.5]} 83... Nf7 {[%clk 0:00:07.9]} 84. Ng4 {[%clk 0:00:09.2]}
84... Nd8+ {[%clk 0:00:07.5]} 85. Kd5 {[%clk 0:00:09.5]} 85... Nf7 {[%clk
0:00:06.7]} 86. h4 {[%clk 0:00:10]} 86... Nd8 {[%clk 0:00:06.2]} 87. Kd6 {[%clk
0:00:10.4]} 87... Nb7+ {[%clk 0:00:04.8]} 88. Kd5 {[%clk 0:00:09.9]} 88... Nd8
{[%clk 0:00:05.2]} 89. Ke5 {[%clk 0:00:06.8]} 89... Nc6+ {[%clk 0:00:04.4]} 90.
Ke4 {[%clk 0:00:07]} 90... Ne7 {[%clk 0:00:04.7]} 91. Ne3 {[%clk 0:00:07.7]}
91... Kh6 {[%clk 0:00:04.6]} 92. Kf3 {[%clk 0:00:08.1]} 92... Kh5 {[%clk
0:00:04.3]} 93. Kg3 {[%clk 0:00:08.6]} 93... Kh6 {[%clk 0:00:02.6]} 94. Kg4
{[%clk 0:00:08.8]} 94... Kh7 {[%clk 0:00:03.3]} 95. Kg5 {[%clk 0:00:08.9]} 95...
Kg7 {[%clk 0:00:03.9]} 96. Nc4 {[%clk 0:00:08.9]} 96... Nf5 {[%clk 0:00:02.2]}
97. Ne5 {[%clk 0:00:08.9]} 97... Ne7 {[%clk 0:00:02.8]} 98. Nc4 {[%clk
0:00:05.2]} 98... Nd5 {[%clk 0:00:03]} 99. Nd6 {[%clk 0:00:05.1]} 99... Nc7
{[%clk 0:00:02]} 100. Nc4 {[%clk 0:00:03.5]} 100... Ne6+ {[%clk 0:00:02.2]} 101.
Kg4 {[%clk 0:00:04.4]} 101... Kh6 {[%clk 0:00:02.6]} 102. Ne5 {[%clk 0:00:05.3]}
102... Ng7 {[%clk 0:00:01.9]} 103. Nf7+ {[%clk 0:00:05.1]} 103... Kh7 {[%clk
0:00:02.8]} 104. Nd6 {[%clk 0:00:05.1]} 104... Kh6 {[%clk 0:00:03.7]} 105. Nc4
{[%clk 0:00:05.4]} 105... Ne6 {[%clk 0:00:04]} 106. Ne5 {[%clk 0:00:05.6]}
106... Ng7 {[%clk 0:00:03.4]} 107. Nf3 {[%clk 0:00:05.9]} 107... Ne6 {[%clk
0:00:03.5]} 108. Ng5 {[%clk 0:00:06.6]} 108... Ng7 {[%clk 0:00:03.2]} 109. Nf7+
{[%clk 0:00:06.9]} 109... Kh7 {[%clk 0:00:03.6]} 110. Nd8 {[%clk 0:00:07.3]}
110... Kh6 {[%clk 0:00:04.1]} 111. Nb7 {[%clk 0:00:07.6]} 111... Ne6 {[%clk
0:00:04.4]} 112. Nd6 {[%clk 0:00:08.4]} 112... Nxf4 {[%clk 0:00:04.7]} 113. Nf7+
{[%clk 0:00:08.2]} 113... Kg7 {[%clk 0:00:04.8]} 114. Ne5 {[%clk 0:00:05.1]}
114... Ng2 {[%clk 0:00:04.9]} 115. Nxg6 {[%clk 0:00:04.9]} 115... Nxh4 {[%clk
0:00:05.3]} 1/2-1/2

[Event "Late-Titled-Tuesday-Blitz-February-20-2024"]
[Site "Chess.com"]
[Date "2024.02.20"]
[Round "10"]
[White "Mr_Heisenberg13"]
[Black "Grischuk"]
[Result "1/2-1/2"]
[WhiteElo "2879"]
[BlackElo "3046"]
[TimeControl "180+1"]
[EndTime "15:48:44 PST"]
[Termination "Game drawn by repetition"]

1. d4 {[%clk 0:03:00]} 1... e6 {[%clk 0:02:59.7]} 2. e4 {[%clk 0:02:57]} 2... d5
{[%clk 0:02:59.5]} 3. Nc3 {[%clk 0:02:56.4]} 3... Nf6 {[%clk 0:02:58.8]} 4. e5
{[%clk 0:02:56.4]} 4... Nfd7 {[%clk 0:02:59.1]} 5. f4 {[%clk 0:02:56.9]} 5... c5
{[%clk 0:02:59.4]} 6. Nf3 {[%clk 0:02:57.6]} 6... Nc6 {[%clk 0:02:59.4]} 7. Be3
{[%clk 0:02:58.1]} 7... cxd4 {[%clk 0:02:59.7]} 8. Nxd4 {[%clk 0:02:58.2]} 8...
Qb6 {[%clk 0:03:00.3]} 9. Qd2 {[%clk 0:02:55.8]} 9... Qxb2 {[%clk 0:03:00.1]}
10. Rb1 {[%clk 0:02:56.1]} 10... Qa3 {[%clk 0:03:00.1]} 11. Bb5 {[%clk
0:02:51.3]} 11... Nxd4 {[%clk 0:03:00]} 12. Bxd4 {[%clk 0:02:50.2]} 12... a6
{[%clk 0:03:00.3]} 13. Bxd7+ {[%clk 0:02:50.2]} 13... Bxd7 {[%clk 0:03:01.2]}
14. Rb3 {[%clk 0:02:50.1]} 14... Qe7 {[%clk 0:03:00.8]} 15. Rxb7 {[%clk
0:02:50.3]} 15... Qh4+ {[%clk 0:03:01.4]} 16. g3 {[%clk 0:02:49.4]} 16... Qd8
{[%clk 0:03:00.9]} 17. Bb6 {[%clk 0:02:49.5]} 17... Qc8 {[%clk 0:03:01]} 18. Rc7
{[%clk 0:02:50]} 18... Qd8 {[%clk 0:03:01.2]} 19. Rb7 {[%clk 0:02:50.5]} 19...
Qc8 {[%clk 0:03:01.5]} 20. Rc7 {[%clk 0:02:51.1]} 20... Qd8 {[%clk 0:03:01.8]}
21. Rb7 {[%clk 0:02:51.7]} 1/2-1/2

[Event "Late-Titled-Tuesday-Blitz-February-20-2024"]
[Site "Chess.com"]
[Date "2024.02.20"]
[Round "10"]
[White "davigator"]
[Black "cmunda"]
[Result "0-1"]
[WhiteElo "2393"]
[BlackElo "2161"]
[TimeControl "180+1"]
[EndTime "15:50:50 PST"]
[Termination "cmunda won by resignation"]

1. e4 {[%clk 0:02:48.8]} 1... c5 {[%clk 0:02:59.4]} 2. Nf3 {[%clk 0:02:47.9]}
2... Nc6 {[%clk 0:02:59.5]} 3. d4 {[%clk 0:02:48.4]} 3... cxd4 {[%clk
0:02:59.5]} 4. Nxd4 {[%clk 0:02:49.3]} 4... e6 {[%clk 0:02:58.4]} 5. Nc3 {[%clk
0:02:46.2]} 5... Nf6 {[%clk 0:02:58.2]} 6. a3 {[%clk 0:02:46.1]} 6... d6 {[%clk
0:02:54.4]} 7. f4 {[%clk 0:02:45.4]} 7... Be7 {[%clk 0:02:54.6]} 8. Be3 {[%clk
0:02:44.3]} 8... O-O {[%clk 0:02:54.6]} 9. Bd3 {[%clk 0:02:38.8]} 9... e5 {[%clk
0:02:54]} 10. Nxc6 {[%clk 0:02:36.9]} 10... bxc6 {[%clk 0:02:53.9]} 11. Qf3
{[%clk 0:02:36.3]} 11... Ng4 {[%clk 0:02:46.5]} 12. Bg1 {[%clk 0:02:35]} 12...
f5 {[%clk 0:02:41.7]} 13. h3 {[%clk 0:02:28.9]} 13... fxe4 {[%clk 0:02:23.1]}
14. Bxe4 {[%clk 0:02:28]} 14... Rxf4 {[%clk 0:02:16.4]} 15. Qd3 {[%clk
0:02:27.4]} 15... Nf6 {[%clk 0:01:45.5]} 16. Bxc6 {[%clk 0:02:25]} 16... Bf5
{[%clk 0:01:38.6]} 17. Qc4+ {[%clk 0:02:21.3]} 17... Rxc4 {[%clk 0:01:36.9]} 18.
Bxa8 {[%clk 0:02:18.1]} 18... Qxa8 {[%clk 0:01:32.8]} 19. O-O-O {[%clk 0:02:18]}
19... Qxg2 {[%clk 0:01:30.1]} 0-1

[Event "Late-Titled-Tuesday-Blitz-February-20-2024"]
[Site "Chess.com"]
[Date "2024.02.20"]
[Round "10"]
[White "Cristi_Coca"]
[Black "rdarruda"]
[Result "1-0"]
[WhiteElo "2390"]
[BlackElo "2512"]
[TimeControl "180+1"]
[EndTime "15:51:24 PST"]
[Termination "Cristi_Coca won by resignation"]

1. e4 {[%clk 0:02:58.2]} 1... c5 {[%clk 0:02:27.9]} 2. c3 {[%clk 0:02:57]} 2...
e6 {[%clk 0:02:27.2]} 3. d4 {[%clk 0:02:56.7]} 3... d5 {[%clk 0:02:27.5]} 4.
exd5 {[%clk 0:02:56.5]} 4... Qxd5 {[%clk 0:02:19.8]} 5. Nf3 {[%clk 0:02:57.2]}
5... Nf6 {[%clk 0:02:19.8]} 6. Na3 {[%clk 0:02:56]} 6... Be7 {[%clk 0:02:18.8]}
7. Be3 {[%clk 0:02:53.2]} 7... cxd4 {[%clk 0:02:16.5]} 8. Nb5 {[%clk 0:02:48.9]}
8... Na6 {[%clk 0:02:15.9]} 9. Bxd4 {[%clk 0:02:41.9]} 9... O-O {[%clk
0:02:13.3]} 10. Be2 {[%clk 0:02:40.1]} 10... Bd7 {[%clk 0:02:04.9]} 11. c4
{[%clk 0:02:38.6]} 11... Qf5 {[%clk 0:01:59.7]} 12. O-O {[%clk 0:02:30.5]} 12...
Bxb5 {[%clk 0:01:57.9]} 13. cxb5 {[%clk 0:02:31.4]} 13... Nc5 {[%clk 0:01:57.8]}
14. Rc1 {[%clk 0:02:19.4]} 14... Rfd8 {[%clk 0:01:56.1]} 15. Qc2 {[%clk
0:02:15.4]} 15... Qxc2 {[%clk 0:01:53.9]} 16. Rxc2 {[%clk 0:02:16.3]} 16... Rac8
{[%clk 0:01:46.3]} 17. Rfc1 {[%clk 0:02:14.7]} 17... Rxd4 {[%clk 0:01:17.3]} 18.
Nxd4 {[%clk 0:02:15.6]} 18... Rd8 {[%clk 0:01:17.3]} 19. Rxc5 {[%clk 0:02:01.8]}
19... Rxd4 {[%clk 0:01:16.3]} 20. Rc8+ {[%clk 0:02:00]} 20... Bd8 {[%clk
0:01:16.3]} 21. Rd1 {[%clk 0:01:58.7]} 1-0

[Event "Late-Titled-Tuesday-Blitz-February-20-2024"]
[Site "Chess.com"]
[Date "2024.02.20"]
[Round "10"]
[White "PNEPaul"]
[Black "miraitrunks"]
[Result "1-0"]
[WhiteElo "2006"]
[BlackElo "2182"]
[TimeControl "180+1"]
[EndTime "15:51:45 PST"]
[Termination "PNEPaul won by resignation"]

1. e4 {[%clk 0:02:49.9]} 1... c5 {[%clk 0:02:58.9]} 2. d4 {[%clk 0:02:48.8]}
2... cxd4 {[%clk 0:02:59.8]} 3. c3 {[%clk 0:02:49]} 3... d3 {[%clk 0:03:00.2]}
4. Bxd3 {[%clk 0:02:48.2]} 4... g6 {[%clk 0:03:00.4]} 5. Nf3 {[%clk 0:02:47.8]}
5... Bg7 {[%clk 0:03:01.1]} 6. Bc4 {[%clk 0:02:48.1]} 6... d6 {[%clk 0:03:00.1]}
7. Bg5 {[%clk 0:02:47.8]} 7... Nf6 {[%clk 0:03:00]} 8. e5 {[%clk 0:02:46.7]}
8... Ne4 {[%clk 0:02:55.2]} 9. Bxf7+ {[%clk 0:02:20.1]} 9... Kf8 {[%clk
0:02:50.8]} 10. e6 {[%clk 0:02:16.6]} 10... Nc6 {[%clk 0:02:45.4]} 11. O-O
{[%clk 0:02:13.6]} 11... Qa5 {[%clk 0:02:43.8]} 12. Be3 {[%clk 0:02:03.9]} 12...
Nd8 {[%clk 0:02:39.1]} 13. Nbd2 {[%clk 0:01:56.9]} 13... Nxd2 {[%clk 0:02:37]}
14. Qxd2 {[%clk 0:01:56.9]} 14... Bxe6 {[%clk 0:02:37.1]} 15. Bxe6 {[%clk
0:01:51.3]} 15... Nxe6 {[%clk 0:02:38]} 16. Bh6 {[%clk 0:01:50.8]} 16... Bxh6
{[%clk 0:02:34.4]} 17. Qxh6+ {[%clk 0:01:49.3]} 17... Kf7 {[%clk 0:02:35.1]} 18.
Rfe1 {[%clk 0:01:39.5]} 18... Raf8 {[%clk 0:02:24.1]} 19. b4 {[%clk 0:00:50]}
19... Qf5 {[%clk 0:02:11.2]} 20. Rxe6 {[%clk 0:00:43.4]} 1-0

[Event "Late-Titled-Tuesday-Blitz-February-20-2024"]
[Site "Chess.com"]
[Date "2024.02.20"]
[Round "10"]
[White "Fluffey"]
[Black "delqate"]
[Result "1-0"]
[WhiteElo "2426"]
[BlackElo "2506"]
[TimeControl "180+1"]
[EndTime "15:51:50 PST"]
[Termination "Fluffey won by resignation"]

1. d4 {[%clk 0:03:00.9]} 1... d5 {[%clk 0:02:59.6]} 2. Bf4 {[%clk 0:03:00.2]}
2... Nf6 {[%clk 0:02:59.3]} 3. e3 {[%clk 0:03:00.3]} 3... c5 {[%clk 0:02:59.5]}
4. Nf3 {[%clk 0:03:00.6]} 4... Nc6 {[%clk 0:02:59.7]} 5. Nbd2 {[%clk 0:03:00.9]}
5... Bg4 {[%clk 0:02:59.6]} 6. h3 {[%clk 0:02:57.5]} 6... Bxf3 {[%clk
0:02:59.2]} 7. Nxf3 {[%clk 0:02:57.7]} 7... e6 {[%clk 0:03:00.1]} 8. c3 {[%clk
0:02:57.1]} 8... Bd6 {[%clk 0:02:59.3]} 9. Bxd6 {[%clk 0:02:56.6]} 9... Qxd6
{[%clk 0:03:00.2]} 10. Bd3 {[%clk 0:02:54.9]} 10... O-O {[%clk 0:02:59.9]} 11.
O-O {[%clk 0:02:54.8]} 11... e5 {[%clk 0:02:58.2]} 12. dxe5 {[%clk 0:02:54.8]}
12... Nxe5 {[%clk 0:02:58.1]} 13. Nxe5 {[%clk 0:02:53]} 13... Qxe5 {[%clk
0:02:59]} 14. Qa4 {[%clk 0:02:52.9]} 14... a6 {[%clk 0:02:55.5]} 15. Rad1 {[%clk
0:02:51.1]} 15... b5 {[%clk 0:02:54.8]} 16. Qa5 {[%clk 0:02:48.4]} 16... Rfd8
{[%clk 0:02:43.8]} 17. Rd2 {[%clk 0:02:41.8]} 17... Rd6 {[%clk 0:02:26.1]} 18.
Rfd1 {[%clk 0:02:40.8]} 18... Rad8 {[%clk 0:02:24.5]} 19. Bc2 {[%clk 0:02:32.1]}
19... h5 {[%clk 0:02:19]} 20. Qc7 {[%clk 0:02:30.6]} 20... c4 {[%clk 0:02:10.6]}
21. Rd4 {[%clk 0:02:27.1]} 21... g6 {[%clk 0:01:53.5]} 22. a4 {[%clk 0:02:23.7]}
22... Kg7 {[%clk 0:01:21.6]} 23. axb5 {[%clk 0:02:22.9]} 23... axb5 {[%clk
0:01:21.3]} 24. Ra1 {[%clk 0:02:23]} 24... g5 {[%clk 0:01:04]} 25. Ra7 {[%clk
0:02:04.1]} 25... R6d7 {[%clk 0:00:55.3]} 26. Qxe5 {[%clk 0:02:03]} 1-0

[Event "Late-Titled-Tuesday-Blitz-February-20-2024"]
[Site "Chess.com"]
[Date "2024.02.20"]
[Round "10"]
[White "ajeale2"]
[Black "DefiantChair"]
[Result "0-1"]
[WhiteElo "2491"]
[BlackElo "2617"]
[TimeControl "180+1"]
[EndTime "15:51:53 PST"]
[Termination "DefiantChair won by resignation"]

1. d4 {[%clk 0:03:00.9]} 1... Nf6 {[%clk 0:02:59.8]} 2. Bf4 {[%clk 0:03:01.2]}
2... d5 {[%clk 0:02:59.9]} 3. e3 {[%clk 0:03:00.4]} 3... c5 {[%clk 0:03:00.3]}
4. c3 {[%clk 0:03:00.5]} 4... Nc6 {[%clk 0:03:00.9]} 5. Nd2 {[%clk 0:03:01]}
5... Qb6 {[%clk 0:02:58.7]} 6. Qb3 {[%clk 0:02:55.5]} 6... c4 {[%clk 0:02:58.8]}
7. Qc2 {[%clk 0:02:55.7]} 7... Bg4 {[%clk 0:02:58.3]} 8. e4 {[%clk 0:02:51.6]}
8... e6 {[%clk 0:02:57.9]} 9. h4 {[%clk 0:02:48.4]} 9... h6 {[%clk 0:02:55]} 10.
b3 {[%clk 0:02:35.8]} 10... cxb3 {[%clk 0:02:50.2]} 11. axb3 {[%clk 0:02:35.8]}
11... Be7 {[%clk 0:02:49.7]} 12. Bd3 {[%clk 0:02:31.8]} 12... Rc8 {[%clk
0:02:46.6]} 13. Qb2 {[%clk 0:02:24.1]} 13... dxe4 {[%clk 0:02:44.2]} 14. Nxe4
{[%clk 0:02:23.6]} 14... Nxe4 {[%clk 0:02:44.5]} 15. Bxe4 {[%clk 0:02:23.9]}
15... O-O {[%clk 0:02:44.4]} 16. f3 {[%clk 0:02:21.1]} 16... Bh5 {[%clk
0:02:43.3]} 17. Ne2 {[%clk 0:02:19.7]} 17... Bf6 {[%clk 0:02:42.4]} 18. Bd6
{[%clk 0:02:07.6]} 18... Rfd8 {[%clk 0:02:39.4]} 19. Bc5 {[%clk 0:02:08]} 19...
Qc7 {[%clk 0:02:39.4]} 20. Bxc6 {[%clk 0:02:07.1]} 20... Qxc6 {[%clk 0:02:39.3]}
21. Rxa7 {[%clk 0:02:02.9]} 21... e5 {[%clk 0:02:37.4]} 22. O-O {[%clk
0:01:48.9]} 22... b6 {[%clk 0:02:29.4]} 23. Be7 {[%clk 0:01:45.5]} 23... Bxe7
{[%clk 0:02:25.6]} 24. Rxe7 {[%clk 0:01:45.5]} 24... exd4 {[%clk 0:02:24.9]} 25.
cxd4 {[%clk 0:01:43.8]} 25... Qf6 {[%clk 0:02:24.8]} 26. Re4 {[%clk 0:01:38.9]}
26... Bg6 {[%clk 0:02:24.2]} 27. Rf4 {[%clk 0:01:39.3]} 27... Qe7 {[%clk
0:02:23.5]} 28. Ng3 {[%clk 0:01:32.4]} 28... Qe3+ {[%clk 0:02:21.1]} 29. Rf2
{[%clk 0:01:20.9]} 29... Qxf4 {[%clk 0:02:16.5]} 30. Ne2 {[%clk 0:01:20.7]}
30... Qe3 {[%clk 0:02:16.6]} 0-1

[Event "Late-Titled-Tuesday-Blitz-February-20-2024"]
[Site "Chess.com"]
[Date "2024.02.20"]
[Round "10"]
[White "AlexeiShirov"]
[Black "NoHeThTo"]
[Result "1-0"]
[WhiteElo "2848"]
[BlackElo "2646"]
[TimeControl "180+1"]
[EndTime "15:51:55 PST"]
[Termination "AlexeiShirov won by resignation"]

1. e4 {[%clk 0:03:00.9]} 1... c5 {[%clk 0:03:00.2]} 2. Nf3 {[%clk 0:03:00.6]}
2... g6 {[%clk 0:03:00.2]} 3. c3 {[%clk 0:02:56.8]} 3... Bg7 {[%clk 0:02:58.9]}
4. d4 {[%clk 0:02:56.2]} 4... cxd4 {[%clk 0:02:59.8]} 5. cxd4 {[%clk 0:02:55.9]}
5... Nf6 {[%clk 0:03:00.1]} 6. Nc3 {[%clk 0:02:54.8]} 6... d5 {[%clk 0:02:59.6]}
7. e5 {[%clk 0:02:54.2]} 7... Ne4 {[%clk 0:03:00.2]} 8. Bd3 {[%clk 0:02:44.5]}
8... Bf5 {[%clk 0:02:59.8]} 9. Qc2 {[%clk 0:02:27.3]} 9... Nc6 {[%clk
0:02:06.1]} 10. O-O {[%clk 0:02:25.7]} 10... O-O {[%clk 0:02:02.6]} 11. Nxe4
{[%clk 0:02:11.7]} 11... Nb4 {[%clk 0:01:59.7]} 12. Qe2 {[%clk 0:02:11.1]} 12...
Nxd3 {[%clk 0:01:59.1]} 13. Ng3 {[%clk 0:02:10.6]} 13... Nxc1 {[%clk 0:01:51]}
14. Raxc1 {[%clk 0:02:09.5]} 14... Bd7 {[%clk 0:01:49.9]} 15. h4 {[%clk
0:02:04.2]} 15... h5 {[%clk 0:01:38.4]} 16. Ng5 {[%clk 0:02:00.7]} 16... e6
{[%clk 0:01:34.9]} 17. Nxh5 {[%clk 0:01:58.1]} 17... gxh5 {[%clk 0:01:06.9]} 18.
Qxh5 {[%clk 0:01:56]} 18... Re8 {[%clk 0:01:06.6]} 19. Qxf7+ {[%clk 0:01:55.1]}
19... Kh8 {[%clk 0:01:06.8]} 20. Qh5+ {[%clk 0:01:53.1]} 20... Kg8 {[%clk
0:01:06.8]} 21. Rc3 {[%clk 0:01:50.9]} 1-0

[Event "Late-Titled-Tuesday-Blitz-February-20-2024"]
[Site "Chess.com"]
[Date "2024.02.20"]
[Round "10"]
[White "JackRodgers"]
[Black "ansko1999"]
[Result "1-0"]
[WhiteElo "2561"]
[BlackElo "2638"]
[TimeControl "180+1"]
[EndTime "15:52:50 PST"]
[Termination "JackRodgers won by resignation"]

1. d4 {[%clk 0:03:00.6]} 1... d6 {[%clk 0:02:57.8]} 2. c4 {[%clk 0:02:59.4]}
2... e5 {[%clk 0:02:57.7]} 3. d5 {[%clk 0:02:58.5]} 3... f5 {[%clk 0:02:54.7]}
4. e4 {[%clk 0:02:57.3]} 4... Nf6 {[%clk 0:02:52.2]} 5. Nc3 {[%clk 0:02:56.1]}
5... Ke7 {[%clk 0:02:43.8]} 6. exf5 {[%clk 0:02:47.4]} 6... Bxf5 {[%clk
0:02:43.3]} 7. Nge2 {[%clk 0:02:43.8]} 7... Nbd7 {[%clk 0:02:39.9]} 8. Ng3
{[%clk 0:02:43.4]} 8... Bg6 {[%clk 0:02:40.5]} 9. h4 {[%clk 0:02:37.2]} 9... h6
{[%clk 0:02:37.5]} 10. h5 {[%clk 0:02:36.3]} 10... Bh7 {[%clk 0:02:36.3]} 11.
Bd3 {[%clk 0:02:36.9]} 11... e4 {[%clk 0:02:17.6]} 12. Ncxe4 {[%clk 0:02:33.7]}
12... Nxe4 {[%clk 0:02:17.5]} 13. Bxe4 {[%clk 0:02:33]} 13... Bxe4 {[%clk
0:02:16.3]} 14. Nxe4 {[%clk 0:02:33.2]} 14... Nf6 {[%clk 0:02:14.7]} 15. Nxf6
{[%clk 0:02:29.5]} 15... gxf6 {[%clk 0:02:07.9]} 16. O-O {[%clk 0:02:27.6]}
16... Qd7 {[%clk 0:02:02.6]} 17. Re1+ {[%clk 0:02:27.7]} 17... Kd8 {[%clk
0:02:02]} 18. Re6 {[%clk 0:02:28.2]} 18... Qg7 {[%clk 0:01:56]} 19. Qf3 {[%clk
0:02:08]} 19... Be7 {[%clk 0:01:55.1]} 20. Bd2 {[%clk 0:02:03.5]} 20... Kc8
{[%clk 0:01:48]} 21. Rae1 {[%clk 0:02:02.5]} 21... Bd8 {[%clk 0:01:47.6]} 22.
Bc3 {[%clk 0:02:01.1]} 22... Rf8 {[%clk 0:01:45.5]} 23. Qf5 {[%clk 0:01:59.9]}
23... Qg5 {[%clk 0:01:35.8]} 24. Qxg5 {[%clk 0:01:48.5]} 24... hxg5 {[%clk
0:01:36.7]} 25. Re8 {[%clk 0:01:40.3]} 25... Rf7 {[%clk 0:01:34.5]} 26. Rh8
{[%clk 0:01:33.8]} 26... Kd7 {[%clk 0:01:28.9]} 27. Ree8 {[%clk 0:01:29.7]}
27... c6 {[%clk 0:01:24.1]} 28. h6 {[%clk 0:01:25.6]} 28... Re7 {[%clk
0:00:53.3]} 29. Rxe7+ {[%clk 0:01:16.5]} 29... Bxe7 {[%clk 0:00:53.3]} 30. Rxa8
{[%clk 0:01:16]} 1-0